[Event "GrandPrix_29.05"]
[Site "Chess.com"]
[Date "2020.05.29"]
[Round "6"]
[White "DaviD-GevorG"]
[Black "Yurovskykh_Alexander"]
[Result "0-1"]
[WhiteElo "1841"]
[BlackElo "2228"]
[TimeControl "600+2"]
[EndTime "12:00:37 PDT"]
[Termination "Yurovskykh_Alexander won on time"]

1. d4 {[%clk 0:10:01.3]} 1... d5 {[%clk 0:10:00.2]} 2. c4 {[%clk 0:10:01.7]}
2... dxc4 {[%clk 0:10:00.8]} 3. Nf3 {[%clk 0:10:02.4]} 3... Nf6 {[%clk
0:10:01.6]} 4. e3 {[%clk 0:10:03.3]} 4... e6 {[%clk 0:10:02.6]} 5. Bxc4 {[%clk
0:10:03]} 5... c5 {[%clk 0:10:03.6]} 6. O-O {[%clk 0:10:00.8]} 6... Nc6 {[%clk
0:10:03.9]} 7. dxc5 {[%clk 0:09:47]} 7... Bxc5 {[%clk 0:09:53.1]} 8. Qxd8+
{[%clk 0:09:46.4]} 8... Kxd8 {[%clk 0:09:51.4]} 9. Nc3 {[%clk 0:09:20.6]} 9...
Ke7 {[%clk 0:09:08]} 10. a3 {[%clk 0:09:18.9]} 10... Bd6 {[%clk 0:08:57.4]} 11.
Nb5 {[%clk 0:09:11.5]} 11... Bb8 {[%clk 0:08:56.1]} 12. Nbd4 {[%clk 0:08:37.9]}
12... Nxd4 {[%clk 0:08:44.9]} 13. Nxd4 {[%clk 0:08:39.8]} 13... Bd7 {[%clk
0:08:44.6]} 14. Bd2 {[%clk 0:08:30.6]} 14... Bd6 {[%clk 0:08:26.7]} 15. Nb5
{[%clk 0:08:25]} 15... Bxb5 {[%clk 0:08:25.9]} 16. Bxb5 {[%clk 0:08:25.6]} 16...
Rac8 {[%clk 0:07:56.6]} 17. Rfc1 {[%clk 0:08:15.9]} 17... a6 {[%clk 0:07:33.2]}
18. Be2 {[%clk 0:08:03.7]} 18... Ne4 {[%clk 0:07:10.2]} 19. Rxc8 {[%clk
0:07:51.5]} 19... Rxc8 {[%clk 0:07:12.1]} 20. Rc1 {[%clk 0:07:51.4]} 20... Rxc1+
{[%clk 0:06:53.1]} 21. Bxc1 {[%clk 0:07:53.3]} 21... Be5 {[%clk 0:06:30.9]} 22.
Bd3 {[%clk 0:07:31.6]} 22... Nc5 {[%clk 0:05:52.3]} 23. Bc2 {[%clk 0:07:25.1]}
23... b5 {[%clk 0:05:48.7]} 24. f3 {[%clk 0:05:53.1]} 24... a5 {[%clk
0:05:22.7]} 25. Kf2 {[%clk 0:04:37.2]} 25... a4 {[%clk 0:05:19.3]} 26. f4 {[%clk
0:04:23.2]} 26... Bf6 {[%clk 0:05:15.9]} 27. e4 {[%clk 0:04:23]} 27... e5 {[%clk
0:04:47.1]} 28. f5 {[%clk 0:04:23]} 28... Kd6 {[%clk 0:04:34.9]} 29. g3 {[%clk
0:02:58.6]} 29... Bd8 {[%clk 0:04:33.3]} 30. Bd2 {[%clk 0:02:36]} 30... Bb6
{[%clk 0:04:28.5]} 31. Ke2 {[%clk 0:02:25.4]} 31... Kc6 {[%clk 0:04:18.5]} 32.
g4 {[%clk 0:02:16.5]} 32... h6 {[%clk 0:04:09]} 33. h4 {[%clk 0:02:13.1]} 33...
f6 {[%clk 0:03:41.3]} 34. g5 {[%clk 0:02:05.5]} 34... hxg5 {[%clk 0:03:42.1]}
35. hxg5 {[%clk 0:02:06.9]} 35... fxg5 {[%clk 0:03:43.7]} 36. Bxg5 {[%clk
0:01:36.2]} 36... Nd7 {[%clk 0:03:42.1]} 37. Kf3 {[%clk 0:00:51.5]} 37... Bd4
{[%clk 0:03:21.6]} 38. b3 {[%clk 0:00:51.9]} 38... axb3 {[%clk 0:03:16]} 39.
Bxb3 {[%clk 0:00:53.8]} 39... Bc5 {[%clk 0:03:15.6]} 40. a4 {[%clk 0:00:51.9]}
40... bxa4 {[%clk 0:03:13.3]} 41. Bxa4+ {[%clk 0:00:53.8]} 41... Kd6 {[%clk
0:03:13.9]} 42. Bxd7 {[%clk 0:00:53.5]} 42... Kxd7 {[%clk 0:03:15.8]} 43. Kg4
{[%clk 0:00:16.3]} 43... Ke8 {[%clk 0:03:13.6]} 44. Bd2 {[%clk 0:00:13.5]} 44...
Bd4 {[%clk 0:03:01.8]} 45. Ba5 {[%clk 0:00:13.9]} 45... Kf7 {[%clk 0:03:02.4]}
46. Kf3 {[%clk 0:00:12.9]} 46... g6 {[%clk 0:03:02.3]} 47. Kg4 {[%clk
0:00:12.8]} 47... Kf6 {[%clk 0:02:53.7]} 48. Bd8+ {[%clk 0:00:12.7]} 48... Kf7
{[%clk 0:02:55.2]} 49. Bc7 {[%clk 0:00:04.3]} 49... Bc3 {[%clk 0:02:54.9]} 50.
Kg5 {[%clk 0:00:04.6]} 50... Bd2+ {[%clk 0:02:56]} 0-1

[Event "GrandPrix_29.05"]
[Site "Chess.com"]
[Date "2020.05.29"]
[Round "6"]
[White "Martin_Petrov2000"]
[Black "arminmusovic"]
[Result "0-1"]
[WhiteElo "2031"]
[BlackElo "2237"]
[TimeControl "600+2"]
[EndTime "12:00:37 PDT"]
[Termination "arminmusovic won on time"]

1. c4 {[%clk 0:10:01.9]} 1... e5 {[%clk 0:09:59.8]} 2. a3 {[%clk 0:09:51.1]}
2... Nf6 {[%clk 0:10:00.5]} 3. Nc3 {[%clk 0:09:51.5]} 3... c6 {[%clk 0:10:01.9]}
4. Nf3 {[%clk 0:09:48.3]} 4... e4 {[%clk 0:10:02.8]} 5. Nd4 {[%clk 0:09:49.2]}
5... d5 {[%clk 0:10:03.4]} 6. cxd5 {[%clk 0:09:50]} 6... cxd5 {[%clk 0:10:04.7]}
7. d3 {[%clk 0:09:50.7]} 7... exd3 {[%clk 0:10:05.7]} 8. Qxd3 {[%clk 0:09:38]}
8... Nc6 {[%clk 0:10:05.7]} 9. g3 {[%clk 0:09:28.4]} 9... Be7 {[%clk 0:10:03]}
10. Bg2 {[%clk 0:09:27.8]} 10... O-O {[%clk 0:10:04.2]} 11. O-O {[%clk
0:09:23.4]} 11... Ne5 {[%clk 0:10:01.9]} 12. Qd1 {[%clk 0:09:18]} 12... Bg4
{[%clk 0:09:59.4]} 13. Bg5 {[%clk 0:08:59.3]} 13... Nc4 {[%clk 0:09:52.9]} 14.
b3 {[%clk 0:08:25.8]} 14... Nb6 {[%clk 0:09:43.7]} 15. Qd3 {[%clk 0:08:14.5]}
15... h6 {[%clk 0:09:33.3]} 16. Bf4 {[%clk 0:08:07.2]} 16... Rc8 {[%clk
0:09:16.7]} 17. Rfc1 {[%clk 0:07:52.6]} 17... Bh5 {[%clk 0:09:09.9]} 18. Nf5
{[%clk 0:07:33.9]} 18... Bg6 {[%clk 0:09:01.1]} 19. Nb5 {[%clk 0:07:27.4]} 19...
Rxc1+ {[%clk 0:08:57.3]} 20. Rxc1 {[%clk 0:07:22.4]} 20... a6 {[%clk 0:08:21.2]}
21. Bc7 {[%clk 0:05:41]} 21... Qd7 {[%clk 0:08:21.4]} 22. Nxe7+ {[%clk
0:05:41.2]} 22... Qxe7 {[%clk 0:08:22]} 23. Qd2 {[%clk 0:05:26.6]} 23... Nc8
{[%clk 0:08:01]} 24. Nd4 {[%clk 0:04:51.6]} 24... Qxa3 {[%clk 0:07:52.9]} 25.
Ba5 {[%clk 0:04:43.8]} 25... Qe7 {[%clk 0:07:43.4]} 26. Rc7 {[%clk 0:04:26.4]}
26... Qe5 {[%clk 0:06:49.8]} 27. Rxb7 {[%clk 0:03:41.9]} 27... Nd6 {[%clk
0:06:40.6]} 28. Bc7 {[%clk 0:03:36.5]} 28... Nfe8 {[%clk 0:06:10.6]} 29. Bb8
{[%clk 0:03:31.1]} 29... Qf6 {[%clk 0:06:11.8]} 30. Rb6 {[%clk 0:03:26.9]} 30...
Qd8 {[%clk 0:06:05.4]} 31. Qa5 {[%clk 0:03:11.1]} 31... Ne4 {[%clk 0:05:09.5]}
32. Nc6 {[%clk 0:03:06.6]} 32... Qf6 {[%clk 0:04:34.1]} 33. Bf4 {[%clk
0:03:02.5]} 33... Qb2 {[%clk 0:04:15.5]} 34. Ne7+ {[%clk 0:02:57.1]} 34... Kh7
{[%clk 0:04:16.4]} 35. Qxd5 {[%clk 0:02:11.1]} 35... Qa1+ {[%clk 0:04:10.2]} 36.
Bf1 {[%clk 0:02:10.5]} 36... N8f6 {[%clk 0:04:11.7]} 37. Qe5 {[%clk 0:02:06.1]}
37... Qd1 {[%clk 0:04:05.6]} 38. Nxg6 {[%clk 0:02:01.8]} 38... fxg6 {[%clk
0:04:05.8]} 39. Rb7 {[%clk 0:01:58]} 39... Nxf2 {[%clk 0:03:37.8]} 40. Kg2
{[%clk 0:01:12.6]} 40... N2g4 {[%clk 0:03:33.4]} 41. Qe7 {[%clk 0:01:06.9]}
41... Qd5+ {[%clk 0:02:57.8]} 42. Kg1 {[%clk 0:01:04.5]} 42... Nh5 {[%clk
0:02:57.4]} 43. Qd7 {[%clk 0:00:22.6]} 43... Qc5+ {[%clk 0:02:51]} 44. Kh1
{[%clk 0:00:14.6]} 44... Qf2 {[%clk 0:02:20.9]} 0-1

[Event "GrandPrix_29.05"]
[Site "Chess.com"]
[Date "2020.05.29"]
[Round "6"]
[White "BogdanDeac"]
[Black "chessfreak35"]
[Result "1/2-1/2"]
[WhiteElo "2348"]
[BlackElo "2425"]
[TimeControl "600+2"]
[EndTime "12:00:38 PDT"]
[Termination "Game drawn by agreement"]

1. Nf3 {[%clk 0:10:01.9]} 1... d5 {[%clk 0:10:00.5]} 2. d4 {[%clk 0:10:02.5]}
2... Nf6 {[%clk 0:10:01.7]} 3. c4 {[%clk 0:10:03.5]} 3... e6 {[%clk 0:10:03.3]}
4. Nc3 {[%clk 0:10:04.3]} 4... Bb4 {[%clk 0:10:03.2]} 5. Bg5 {[%clk 0:10:02.8]}
5... h6 {[%clk 0:10:01.9]} 6. Bxf6 {[%clk 0:10:03.7]} 6... Qxf6 {[%clk
0:10:03.8]} 7. Qa4+ {[%clk 0:10:04.9]} 7... Nc6 {[%clk 0:10:04.8]} 8. e3 {[%clk
0:10:06.2]} 8... O-O {[%clk 0:09:58.1]} 9. Rd1 {[%clk 0:10:06.9]} 9... Rd8
{[%clk 0:09:53.8]} 10. h3 {[%clk 0:10:07.1]} 10... Bd7 {[%clk 0:09:19.1]} 11.
Qc2 {[%clk 0:10:01.3]} 11... dxc4 {[%clk 0:08:32.5]} 12. Bxc4 {[%clk 0:09:59.2]}
12... a6 {[%clk 0:08:29]} 13. O-O {[%clk 0:09:57.3]} 13... Bd6 {[%clk
0:08:24.7]} 14. Qe4 {[%clk 0:09:33.6]} 14... b5 {[%clk 0:08:14.1]} 15. Bb3
{[%clk 0:09:13.4]} 15... Nb4 {[%clk 0:08:08.3]} 16. a3 {[%clk 0:08:48.6]} 16...
Bc6 {[%clk 0:07:59.7]} 17. Qh4 {[%clk 0:08:40]} 17... Bxf3 {[%clk 0:04:55.8]}
18. Qxf6 {[%clk 0:08:36.7]} 18... gxf6 {[%clk 0:04:57.7]} 19. gxf3 {[%clk
0:08:37.5]} 19... Nc6 {[%clk 0:04:59.4]} 20. Rc1 {[%clk 0:08:01.3]} 20... Ne7
{[%clk 0:04:59.1]} 21. f4 {[%clk 0:07:53.7]} 21... f5 {[%clk 0:04:57.2]} 22.
Rfd1 {[%clk 0:07:40]} 22... c6 {[%clk 0:04:43.9]} 23. Nb1 {[%clk 0:07:32.8]}
23... a5 {[%clk 0:04:17.8]} 24. Nd2 {[%clk 0:07:33.1]} 24... a4 {[%clk 0:04:16]}
25. Ba2 {[%clk 0:07:30.1]} 25... Rab8 {[%clk 0:04:14.7]} 26. Nf3 {[%clk
0:07:21.9]} 26... b4 {[%clk 0:04:12.3]} 27. axb4 {[%clk 0:07:18.5]} 27... Rxb4
{[%clk 0:04:14.2]} 28. Rc4 {[%clk 0:06:31.1]} 28... Rdb8 {[%clk 0:03:55.1]} 29.
Rd2 {[%clk 0:06:19.3]} 29... Rxc4 {[%clk 0:03:13.7]} 30. Bxc4 {[%clk 0:06:19]}
30... c5 {[%clk 0:03:15.3]} 31. dxc5 {[%clk 0:05:59.3]} 31... Bxc5 {[%clk
0:03:15]} 32. Ne5 {[%clk 0:05:56.3]} 32... Kg7 {[%clk 0:02:49.4]} 33. Nd7 {[%clk
0:04:36.1]} 33... Rb4 {[%clk 0:01:47.3]} 34. Be2 {[%clk 0:03:21.7]} 34... Ba7
{[%clk 0:01:45.3]} 35. Ne5 {[%clk 0:03:16.8]} 35... Bb8 {[%clk 0:01:22.3]} 36.
Nd3 {[%clk 0:03:03.7]} 36... Rb5 {[%clk 0:00:51]} 37. Rd1 {[%clk 0:01:49]} 37...
Ra5 {[%clk 0:00:43.3]} 38. Ra1 {[%clk 0:01:43.8]} 38... Bd6 {[%clk 0:00:43.9]}
39. Bd1 {[%clk 0:01:35.8]} 39... a3 {[%clk 0:00:45.4]} 40. bxa3 {[%clk
0:01:36.1]} 40... Rxa3 {[%clk 0:00:46.5]} 41. Rxa3 {[%clk 0:01:36.6]} 41... Bxa3
{[%clk 0:00:48.4]} 42. Bh5 {[%clk 0:01:37.4]} 42... Bd6 {[%clk 0:00:48]} 43. Kg2
{[%clk 0:01:36.8]} 43... Nd5 {[%clk 0:00:49.5]} 44. Bf3 {[%clk 0:01:37.3]} 44...
Nb4 {[%clk 0:00:49.7]} 45. Nxb4 {[%clk 0:01:37.7]} 45... Bxb4 {[%clk 0:00:51.6]}
46. e4 {[%clk 0:01:37.1]} 1/2-1/2

[Event "GrandPrix_29.05"]
[Site "Chess.com"]
[Date "2020.05.29"]
[Round "6"]
[White "Msb2"]
[Black "TimofeevAr"]
[Result "0-1"]
[WhiteElo "2535"]
[BlackElo "2635"]
[TimeControl "600+2"]
[EndTime "12:00:43 PDT"]
[Termination "TimofeevAr won by checkmate"]

1. d4 {[%clk 0:10:01.9]} 1... Nf6 {[%clk 0:09:58.2]} 2. c4 {[%clk 0:10:03]} 2...
g6 {[%clk 0:09:59.1]} 3. Nc3 {[%clk 0:10:04.4]} 3... d5 {[%clk 0:10:00.3]} 4.
cxd5 {[%clk 0:10:05.5]} 4... Nxd5 {[%clk 0:10:01.4]} 5. e4 {[%clk 0:10:07.1]}
5... Nb6 {[%clk 0:10:02.6]} 6. Be2 {[%clk 0:09:49.6]} 6... Bg7 {[%clk
0:10:01.9]} 7. Nf3 {[%clk 0:09:50.1]} 7... Bg4 {[%clk 0:10:00.9]} 8. Be3 {[%clk
0:09:44.8]} 8... O-O {[%clk 0:09:55.4]} 9. O-O {[%clk 0:09:34.4]} 9... Nc6
{[%clk 0:09:54.5]} 10. e5 {[%clk 0:09:15.9]} 10... Nb4 {[%clk 0:09:37.8]} 11. h3
{[%clk 0:09:01]} 11... Bxf3 {[%clk 0:09:31.2]} 12. Bxf3 {[%clk 0:09:02.9]} 12...
c6 {[%clk 0:09:32.3]} 13. Qe2 {[%clk 0:08:58.1]} 13... N4d5 {[%clk 0:09:28.2]}
14. Rad1 {[%clk 0:08:58.6]} 14... a5 {[%clk 0:09:23.9]} 15. Ne4 {[%clk
0:08:57.5]} 15... a4 {[%clk 0:09:21.4]} 16. Nc5 {[%clk 0:08:54.7]} 16... Qc7
{[%clk 0:09:20.8]} 17. Bd2 {[%clk 0:08:38.8]} 17... e6 {[%clk 0:09:20]} 18. Rfe1
{[%clk 0:08:33.8]} 18... Nd7 {[%clk 0:09:15.3]} 19. Ne4 {[%clk 0:07:52]} 19...
Qb6 {[%clk 0:09:08.9]} 20. Bg5 {[%clk 0:07:44.6]} 20... a3 {[%clk 0:09:00.6]}
21. b3 {[%clk 0:07:41.9]} 21... Qb4 {[%clk 0:09:01.4]} 22. Qd3 {[%clk
0:07:24.4]} 22... Qb6 {[%clk 0:08:26.8]} 23. h4 {[%clk 0:07:20.7]} 23... h6
{[%clk 0:08:13.3]} 24. Bc1 {[%clk 0:07:08.8]} 24... Rfd8 {[%clk 0:08:11.9]} 25.
h5 {[%clk 0:06:55]} 25... g5 {[%clk 0:08:11.6]} 26. Nxg5 {[%clk 0:06:12.9]}
26... hxg5 {[%clk 0:08:09.7]} 27. Bxg5 {[%clk 0:06:14.8]} 27... Nb4 {[%clk
0:08:02.7]} 28. Qb1 {[%clk 0:06:01.1]} 28... Nf8 {[%clk 0:07:56.5]} 29. h6
{[%clk 0:05:50.3]} 29... Bh8 {[%clk 0:07:54.9]} 30. Re4 {[%clk 0:05:07.2]} 30...
Ng6 {[%clk 0:07:42.7]} 31. Bh5 {[%clk 0:04:53.4]} 31... Kh7 {[%clk 0:07:32.5]}
32. Rf4 {[%clk 0:04:05.5]} 32... Qc7 {[%clk 0:07:31.4]} 33. Bxd8 {[%clk
0:03:35.5]} 33... Rxd8 {[%clk 0:07:29]} 34. Rg4 {[%clk 0:03:36.7]} 34... Rg8
{[%clk 0:07:27.3]} 35. Re1 {[%clk 0:03:38.3]} 35... Nd5 {[%clk 0:07:26.2]} 36.
Qd3 {[%clk 0:03:34.5]} 36... Ne7 {[%clk 0:07:07.5]} 37. Rf4 {[%clk 0:03:15.5]}
37... Nf5 {[%clk 0:06:55.5]} 38. Rxf5 {[%clk 0:03:09]} 38... exf5 {[%clk
0:06:56.3]} 39. Qxf5 {[%clk 0:03:10.9]} 39... Qe7 {[%clk 0:06:52.1]} 40. Re3
{[%clk 0:03:01.6]} 40... Qe6 {[%clk 0:06:46.8]} 41. Qc2 {[%clk 0:02:44.2]} 41...
Kxh6 {[%clk 0:06:38.3]} 42. Bxg6 {[%clk 0:02:34.7]} 42... Rxg6 {[%clk
0:06:32.8]} 43. Qe4 {[%clk 0:02:19.9]} 43... Qg4 {[%clk 0:06:27.7]} 44. f4
{[%clk 0:02:21.2]} 44... f5 {[%clk 0:06:05.5]} 45. Qf3 {[%clk 0:01:39.7]} 45...
Kg7 {[%clk 0:05:44.9]} 46. Qxg4 {[%clk 0:01:25.8]} 46... Rxg4 {[%clk 0:05:45.3]}
47. g3 {[%clk 0:01:27.4]} 47... Kf7 {[%clk 0:05:46]} 48. b4 {[%clk 0:01:26]}
48... Ke6 {[%clk 0:05:32.5]} 49. Rxa3 {[%clk 0:01:27.1]} 49... Bg7 {[%clk
0:05:33.3]} 50. Kf2 {[%clk 0:01:24.4]} 50... Bf8 {[%clk 0:05:29.2]} 51. Ra7
{[%clk 0:01:23.5]} 51... Bxb4 {[%clk 0:05:25.9]} 52. Rxb7 {[%clk 0:01:24.5]}
52... Bc3 {[%clk 0:05:27]} 53. Rc7 {[%clk 0:01:15.8]} 53... Bxd4+ {[%clk
0:05:27.6]} 54. Kf3 {[%clk 0:01:17.2]} 54... c5 {[%clk 0:05:11.4]} 55. Rc6+
{[%clk 0:01:18.4]} 55... Ke7 {[%clk 0:05:12.8]} 56. Rf6 {[%clk 0:00:36.6]} 56...
c4 {[%clk 0:05:12.4]} 57. Rc6 {[%clk 0:00:36.9]} 57... c3 {[%clk 0:04:56]} 58.
Rc4 {[%clk 0:00:37.6]} 58... Bxe5 {[%clk 0:04:55.6]} 59. Rc5 {[%clk 0:00:18.7]}
59... Bf6 {[%clk 0:04:49.4]} 60. Rxf5 {[%clk 0:00:16.5]} 60... Rg8 {[%clk
0:04:50]} 61. Rc5 {[%clk 0:00:17.2]} 61... Kd6 {[%clk 0:04:47.8]} 62. Rc4 {[%clk
0:00:15.9]} 62... Kd5 {[%clk 0:04:48.6]} 63. Rc7 {[%clk 0:00:16.4]} 63... Bd4
{[%clk 0:04:45.4]} 64. g4 {[%clk 0:00:13]} 64... Bc5 {[%clk 0:04:26.3]} 65. Ke2
{[%clk 0:00:04.4]} 65... Rxg4 {[%clk 0:04:26.6]} 66. f5 {[%clk 0:00:05.9]} 66...
c2 {[%clk 0:04:21.1]} 67. Kd2 {[%clk 0:00:06.8]} 67... Rg2+ {[%clk 0:04:22.1]}
68. Kd3 {[%clk 0:00:03.9]} 68... c1=Q {[%clk 0:04:16.1]} 69. Rd7+ {[%clk
0:00:04.9]} 69... Kc6 {[%clk 0:04:16.1]} 70. Rc7+ {[%clk 0:00:06]} 70... Kxc7
{[%clk 0:04:16.6]} 71. Ke4 {[%clk 0:00:07.9]} 71... Qe3+ {[%clk 0:04:16.9]} 72.
Kd5 {[%clk 0:00:09.3]} 72... Qd4+ {[%clk 0:04:17.4]} 73. Ke6 {[%clk 0:00:11.2]}
73... Qd6+ {[%clk 0:04:18.4]} 74. Kf7 {[%clk 0:00:12.3]} 74... Qe7# {[%clk
0:04:19.8]} 0-1

[Event "GrandPrix_29.05"]
[Site "Chess.com"]
[Date "2020.05.29"]
[Round "6"]
[White "ChessQueen"]
[Black "OhanyanEminChess"]
[Result "1-0"]
[WhiteElo "2027"]
[BlackElo "2046"]
[TimeControl "600+2"]
[EndTime "12:00:47 PDT"]
[Termination "ChessQueen won by resignation"]

1. e4 {[%clk 0:10:01.9]} 1... e5 {[%clk 0:09:25.3]} 2. Nf3 {[%clk 0:10:01.6]}
2... Nc6 {[%clk 0:09:25.1]} 3. Bb5 {[%clk 0:10:02.4]} 3... f5 {[%clk 0:09:25.5]}
4. Nc3 {[%clk 0:09:59.3]} 4... fxe4 {[%clk 0:09:22.7]} 5. Nxe4 {[%clk
0:10:00.2]} 5... Nf6 {[%clk 0:09:23.3]} 6. Qe2 {[%clk 0:09:38]} 6... Qe7 {[%clk
0:09:20.9]} 7. Nxf6+ {[%clk 0:09:31.6]} 7... gxf6 {[%clk 0:09:22.8]} 8. Qe4
{[%clk 0:08:50.8]} 8... a6 {[%clk 0:09:00.7]} 9. Bc4 {[%clk 0:07:41.9]} 9... Bg7
{[%clk 0:08:40.4]} 10. Nh4 {[%clk 0:07:29.3]} 10... d6 {[%clk 0:08:12.6]} 11. c3
{[%clk 0:07:14.8]} 11... Nd8 {[%clk 0:07:48]} 12. Nf5 {[%clk 0:06:26.3]} 12...
Bxf5 {[%clk 0:07:24.6]} 13. Qxf5 {[%clk 0:06:26.6]} 13... c6 {[%clk 0:07:26.2]}
14. O-O {[%clk 0:05:31.8]} 14... d5 {[%clk 0:07:24.2]} 15. Be2 {[%clk
0:05:26.2]} 15... O-O {[%clk 0:07:09.4]} 16. f3 {[%clk 0:05:10.5]} 16... Nf7
{[%clk 0:06:50.3]} 17. Bd3 {[%clk 0:05:02]} 17... e4 {[%clk 0:06:49.6]} 18. fxe4
{[%clk 0:05:02.7]} 18... Nd6 {[%clk 0:06:50.9]} 19. Qf4 {[%clk 0:04:49.2]} 19...
dxe4 {[%clk 0:06:48.6]} 20. Bc2 {[%clk 0:04:45.7]} 20... f5 {[%clk 0:06:48.7]}
21. d3 {[%clk 0:04:38.5]} 21... Rae8 {[%clk 0:06:44.8]} 22. Qg5 {[%clk
0:04:27.7]} 22... Qd7 {[%clk 0:05:57.5]} 23. Qg3 {[%clk 0:04:17.1]} 23... exd3
{[%clk 0:04:40.6]} 24. Bxd3 {[%clk 0:04:08.9]} 24... Ne4 {[%clk 0:04:39.7]} 25.
Qh3 {[%clk 0:03:53.3]} 25... Rf6 {[%clk 0:02:43.6]} 26. Bf4 {[%clk 0:03:48.5]}
26... Rg6 {[%clk 0:02:35]} 27. Rae1 {[%clk 0:03:33.9]} 27... Qf7 {[%clk
0:02:25.6]} 28. Bc1 {[%clk 0:03:16.6]} 28... Nd6 {[%clk 0:01:57.7]} 29. Rxe8+
{[%clk 0:02:54.5]} 29... Qxe8 {[%clk 0:01:59.6]} 30. Bf4 {[%clk 0:02:35.5]}
30... Be5 {[%clk 0:01:33.5]} 31. Re1 {[%clk 0:02:34.8]} 31... Bxf4 {[%clk
0:00:32.2]} 32. Rxe8+ {[%clk 0:02:34.5]} 32... Nxe8 {[%clk 0:00:34.1]} 33. Bxf5
{[%clk 0:02:26.3]} 33... Rg7 {[%clk 0:00:34.1]} 34. Be6+ {[%clk 0:02:21.8]}
34... Kf8 {[%clk 0:00:33.1]} 35. Qf5+ {[%clk 0:02:21.8]} 35... Ke7 {[%clk
0:00:34.4]} 36. Qxf4 {[%clk 0:02:14.7]} 36... Kxe6 {[%clk 0:00:35.8]} 37. Qe4+
{[%clk 0:02:09.7]} 37... Kf7 {[%clk 0:00:28.2]} 38. Qc4+ {[%clk 0:02:10.4]}
38... Kf8 {[%clk 0:00:26.1]} 39. g3 {[%clk 0:02:09.8]} 39... Nf6 {[%clk
0:00:26.5]} 40. Qf4 {[%clk 0:02:10.5]} 40... Rf7 {[%clk 0:00:27.3]} 41. Qe5
{[%clk 0:02:11.3]} 41... Nd7 {[%clk 0:00:21.3]} 42. Qh8+ {[%clk 0:02:08.4]}
42... Ke7 {[%clk 0:00:22.3]} 43. Qc8 {[%clk 0:02:06.3]} 43... Nc5 {[%clk
0:00:14.1]} 44. b4 {[%clk 0:02:06]} 1-0

[Event "GrandPrix_29.05"]
[Site "Chess.com"]
[Date "2020.05.29"]
[Round "6"]
[White "eljanov"]
[Black "swisspower96"]
[Result "0-1"]
[WhiteElo "2294"]
[BlackElo "2353"]
[TimeControl "600+2"]
[EndTime "12:00:58 PDT"]
[Termination "swisspower96 won by resignation"]

1. e4 {[%clk 0:10:00.7]} 1... c5 {[%clk 0:09:50.3]} 2. Nf3 {[%clk 0:10:01.1]}
2... Nc6 {[%clk 0:09:50.8]} 3. Bb5 {[%clk 0:10:01.9]} 3... g6 {[%clk 0:09:46.6]}
4. Bxc6 {[%clk 0:09:58.3]} 4... dxc6 {[%clk 0:09:47.1]} 5. d3 {[%clk 0:09:59]}
5... Bg7 {[%clk 0:09:46]} 6. h3 {[%clk 0:10:00.1]} 6... Nf6 {[%clk 0:09:42.4]}
7. Nc3 {[%clk 0:10:00.3]} 7... Nd7 {[%clk 0:09:40]} 8. Be3 {[%clk 0:09:53.2]}
8... e5 {[%clk 0:09:40.4]} 9. Qd2 {[%clk 0:09:51.6]} 9... h6 {[%clk 0:09:41]}
10. a3 {[%clk 0:09:49.1]} 10... b6 {[%clk 0:08:57.2]} 11. O-O {[%clk 0:09:09.6]}
11... Nf8 {[%clk 0:08:35.9]} 12. b4 {[%clk 0:09:02.7]} 12... Ne6 {[%clk
0:08:36.7]} 13. bxc5 {[%clk 0:09:01.2]} 13... f5 {[%clk 0:08:38]} 14. exf5
{[%clk 0:08:21.4]} 14... gxf5 {[%clk 0:08:38]} 15. Qe1 {[%clk 0:08:22.7]} 15...
O-O {[%clk 0:08:00.1]} 16. cxb6 {[%clk 0:08:18.9]} 16... axb6 {[%clk 0:07:37.5]}
17. Bd2 {[%clk 0:08:11.8]} 17... Qd6 {[%clk 0:07:24.3]} 18. Rb1 {[%clk 0:06:53]}
18... b5 {[%clk 0:06:31.9]} 19. Nxb5 {[%clk 0:06:53.7]} 19... cxb5 {[%clk
0:06:27.1]} 20. Bb4 {[%clk 0:06:54.9]} 20... Qd5 {[%clk 0:06:21.9]} 21. Bxf8
{[%clk 0:06:55.7]} 21... Kxf8 {[%clk 0:06:23]} 22. c4 {[%clk 0:06:56.9]} 22...
bxc4 {[%clk 0:05:44.5]} 23. dxc4 {[%clk 0:06:56.2]} 23... Qxc4 {[%clk
0:05:45.7]} 24. Nxe5 {[%clk 0:06:54.7]} 24... Qd5 {[%clk 0:05:45.7]} 25. Qb4+
{[%clk 0:06:01.6]} 25... Kg8 {[%clk 0:05:42]} 26. Ng6 {[%clk 0:05:55.3]} 26...
Kh7 {[%clk 0:04:25.5]} 27. Ne7 {[%clk 0:05:56.2]} 27... Qd7 {[%clk 0:04:08.2]}
28. Nxf5 {[%clk 0:05:40.7]} 28... Ng5 {[%clk 0:02:47]} 29. Nxg7 {[%clk
0:05:41.4]} 29... Qxg7 {[%clk 0:02:48.9]} 30. Kh2 {[%clk 0:05:21.1]} 30... Bf5
{[%clk 0:02:15.6]} 31. Rb3 {[%clk 0:05:21.6]} 31... Ne4 {[%clk 0:02:01.4]} 32.
Qb7 {[%clk 0:05:16.1]} 32... Ra7 {[%clk 0:01:19.3]} 33. Qxg7+ {[%clk 0:05:15.8]}
33... Kxg7 {[%clk 0:01:21.2]} 34. Re1 {[%clk 0:04:54]} 34... Bg6 {[%clk
0:01:16]} 35. Re2 {[%clk 0:04:09.5]} 35... h5 {[%clk 0:01:15.4]} 36. Rbe3 {[%clk
0:04:08.1]} 36... Ra4 {[%clk 0:01:15.9]} 37. f3 {[%clk 0:03:57.9]} 37... Nd6
{[%clk 0:01:13.7]} 38. Re7+ {[%clk 0:03:57.5]} 38... Kh6 {[%clk 0:01:13.5]} 39.
R2e6 {[%clk 0:03:52]} 39... Nf5 {[%clk 0:01:10.4]} 40. Rf7 {[%clk 0:03:45.6]}
40... Kg5 {[%clk 0:00:46.4]} 41. f4+ {[%clk 0:03:42.4]} 41... Rxf4 {[%clk
0:00:44.2]} 42. Rff6 {[%clk 0:03:25.6]} 42... Bh7 {[%clk 0:00:43.9]} 43. Rf7
{[%clk 0:03:11.2]} 43... Bg8 {[%clk 0:00:37.6]} 44. Ref6 {[%clk 0:02:53.7]}
44... Bxf7 {[%clk 0:00:37.7]} 45. Rxf7 {[%clk 0:02:55.6]} 45... h4 {[%clk
0:00:35.4]} 46. Ra7 {[%clk 0:02:53.8]} 46... Ng3 {[%clk 0:00:34.8]} 47. Rg7+
{[%clk 0:02:52.5]} 47... Kh5 {[%clk 0:00:31.3]} 48. Rh7+ {[%clk 0:01:54.3]}
48... Kg6 {[%clk 0:00:28.8]} 49. Rh8 {[%clk 0:01:55.1]} 49... Kg7 {[%clk
0:00:29.6]} 0-1